bitfinex-derivatives/quotes_ETHF0:USTF0_20240830
["timestamp","ask_amount","ask_price","bid_price","bid_amount"]
[1725024124592,1.49047,2528.9,2528.8,0.39538]
[1725024124891,0.39535,2529.1,2528.9,0.39536]
[1725024125080,0.75505,2529.1,2528.9,0.39536]
[1725024125478,0.75505,2529.1,2529.0,0.59904251]
[1725024126692,0.3597,2529.1,2529.0,0.99439251]
[1725024127192,0.76712,2529.2,2529.1,0.39533]
[1725024127391,0.76094401,2529.3,2529.2,0.39532]
[1725024127592,0.36563401,2529.3,2529.2,0.39532]
[1725024127798,0.00593401,2529.3,2529.2,0.99428059]
[1725024127980,0.00593401,2529.3,2529.2,5.8144771]
[1725024128791,0.00593401,2529.3,2529.2,5.4191571]
[1725024129188,0.00593401,2529.3,2529.2,5.8144771]
[1725024129693,0.00593401,2529.3,2529.2,1.8608771]
[1725024129894,0.40123401,2529.3,2529.2,5.4191571]
[1725024130091,0.40123401,2529.3,2529.2,1.4655571]
[1725024131195,0.40123401,2529.3,2529.2,1.46601323]
[1725024131590,0.00593401,2529.3,2529.2,1.46601323]
[1725024132092,0.40123401,2529.3,2529.2,1.46601323]
[1725024132501,0.40123401,2529.3,2529.2,0.59910094]
[1725024134391,0.40123401,2529.3,2529.0,0.3725]
[1725024134392,0.39533,2529.2,2529.0,0.3725]
[1725024134796,0.39533,2529.2,2529.1,1.46594568]
[1725024134797,4.59143,2529.2,2529.1,1.46594568]
[1725024134986,4.59143,2529.2,2529.1,0.59907193]
[1725024135185,0.39539,2528.8,2528.6,8.07241]
[1725024135391,0.39539,2528.8,2528.7,1.46604865]
[1725024135597,0.98838,2529.0,2528.7,1.46604865]
[1725024135598,0.76487,2528.9,2528.7,1.86143865]
[1725024135804,0.3695,2528.9,2528.8,1.86142865]
[1725024135998,4.46151949,2528.9,2528.8,1.86142865]
[1725024136304,0.39532,2529.2,2529.0,0.39534]
[1725024136598,0.39532,2529.2,2529.1,0.59911153]
[1725024136801,0.37543401,2529.3,2529.2,0.39532]
[1725024136988,0.00593401,2529.3,2529.2,0.99443153]
[1725024137293,0.00593401,2529.3,2529.2,2.2517564]
[1725024138096,0.00593401,2529.3,2529.2,0.78622]
[1725024138393,0.00593401,2529.3,2529.2,2.62347454]
[1725024138606,0.40123401,2529.3,2529.2,1.46485454]
[1725024138793,0.40123401,2529.3,2529.2,1.86033416]
[1725024139397,0.40123401,2529.3,2529.2,0.99394887]
[1725024139695,0.40123401,2529.3,2529.2,0.59862887]
[1725024141402,4.94779401,2529.3,2528.9,0.39535]
[1725024141600,0.39534,2529.1,2529.0,1.46602527]
[1725024141898,1.52223,2529.2,2529.1,0.39533]
[1725024142092,1.52223,2529.2,2529.1,1.86135527]
[1725024142699,1.52223,2529.2,2529.1,1.46602527]
[1725024144905,1.1269,2529.2,2529.0,0.39534]
[1725024145095,1.52222,2529.2,2529.1,1.46629777]
[1725024145499,1.52222,2529.2,2529.1,1.46637675]
[1725024146510,1.52222,2529.2,2529.1,1.46628442]
[1725024147707,1.52222,2529.2,2529.1,0.59921606]
[1725024148517,0.39533,2529.1,2529.0,0.39535]
[1725024148811,0.39533,2529.1,2529.0,1.86123658]
[1725024149111,0.39532,2529.2,2529.1,0.39532]
[1725024149313,0.39532,2529.2,2529.1,2.62730658]
[1725024149809,0.00593401,2529.3,2529.2,1.38362]
[1725024150000,0.00593401,2529.3,2529.2,1.86120658]
[1725024150204,0.00593401,2529.3,2529.2,5.81480658]
[1725024150715,0.00593401,2529.3,2529.2,6.80310658]
[1725024151006,0.00593401,2529.3,2529.2,5.81480658]
[1725024151905,0.39532,2529.2,2529.1,0.39532]
[1725024152307,0.78434401,2529.3,2529.2,0.39532]
[1725024152608,0.78434401,2529.3,2529.2,1.85998663]
[1725024153211,0.78434401,2529.3,2529.2,0.59855095]
[1725024153417,0.78434401,2529.3,2529.2,1.46492195]
[1725024154304,0.78434401,2529.3,2529.2,0.59855095]
[1725024154510,0.78434401,2529.3,2529.2,1.46505334]
[1725024154815,0.78434401,2529.3,2529.2,0.59855095]
[1725024155313,1.77260401,2529.3,2529.2,0.59855095]
[1725024155516,0.39533,2529.1,2529.0,0.39534]
[1725024155813,0.39533,2529.1,2529.0,1.86131804]
[1725024159217,0.39533,2529.1,2529.0,1.86146316]
[1725024159617,0.76693,2529.2,2529.1,0.39533]
[1725024159916,0.76693,2529.2,2529.1,0.59914523]
[1725024160135,1.75523,2529.2,2529.1,0.59914523]
[1725024166433,0.39537,2528.9,2528.7,5.02318]
[1725024166636,0.7543,2528.8,2528.7,5.38648]
[1725024166836,0.7543,2528.8,2528.7,6.85376747]
[1725024168932,0.7543,2528.8,2528.7,3.64596747]
[1725024169139,1.14968,2528.8,2528.7,6.85376747]
[1725024169729,1.14968,2528.8,2528.7,6.45838747]
[1725024169929,1.14968,2528.8,2528.7,4.9911]
[1725024170134,1.14968,2528.8,2528.7,6.45840151]
[1725024170543,1.14968,2528.8,2528.7,6.85380151]
[1725024171241,1.14968,2528.8,2528.7,6.45840151]
[1725024171947,2.13814,2528.8,2528.7,6.45840151]
[1725024172235,2.13814,2528.8,2528.7,1.83060151]
[1725024173235,1.14968,2528.8,2528.7,1.83060151]
[1725024173745,1.14968,2528.8,2528.7,1.83125016]
[1725024174137,2.13814,2528.8,2528.7,1.83125016]
[1725024177539,0.39537,2528.9,2528.8,0.39537]
[1725024177730,0.39537,2528.9,2528.8,3.28332016]
[1725024180052,0.39537,2528.9,2528.8,1.86332016]
[1725024181537,3.2078,2529.0,2528.9,0.39536]
[1725024181741,3.2078,2529.0,2528.9,1.86331016]
[1725024181938,3.2078,2529.0,2528.9,5.81771016]
[1725024182433,3.60315,2529.0,2528.9,5.81771016]
[1725024182831,3.60315,2529.0,2528.9,4.94829448]
[1725024183039,3.60315,2529.0,2528.9,4.8205001]
[1725024183345,4.59153,2529.0,2528.9,6.28505501]
[1725024183638,5.57991,2529.0,2528.9,2.33065501]
[1725024184744,4.59153,2529.0,2528.9,2.33065501]
[1725024185247,4.59153,2529.0,2528.9,1.46455491]
[1725024186048,0.39535,2529.0,2528.9,1.85991491]
[1725024186246,0.39535,2529.0,2528.9,0.99386187]
[1725024186449,0.39535,2529.0,2528.9,0.99480089]
[1725024186642,0.39535,2529.0,2528.9,1.86221222]
[1725024186837,0.39535,2529.0,2528.9,1.46685222]
[1725024187139,1.38373,2529.0,2528.9,1.46685222]
[1725024192052,1.38373,2529.0,2528.9,1.86221222]
[1725024192351,1.38373,2529.0,2528.9,1.46685222]
[1725024193051,0.39536,2528.9,2528.8,0.39537]
[1725024193349,0.39534,2529.1,2529.0,0.39533]
[1725024193550,0.39533,2529.2,2529.1,0.74982]
[1725024193850,0.39533,2529.2,2529.1,2.21738287]
[1725024194751,0.39533,2529.2,2529.1,0.74982]
[1725024194956,0.39533,2529.2,2529.1,2.21729454]
[1725024196143,0.39533,2529.2,2529.1,0.74982]
[1725024196555,0.39533,2529.2,2529.1,2.21688968]
[1725024196747,3.60904401,2529.3,2529.2,0.39532]
[1725024196947,3.60904401,2529.3,2529.2,1.86238968]
[1725024197147,0.40124401,2529.3,2529.2,1.86238968]
[1725024197354,1.75750401,2529.3,2529.2,1.46706968]
[1725024197547,2.14050401,2529.3,2529.2,1.46706968]
[1725024197851,0.40124401,2529.3,2529.2,1.86238968]
[1725024198055,0.40124401,2529.3,2529.2,2.23748968]
[1725024198444,0.40124401,2529.3,2529.2,1.86238968]
[1725024199555,0.40124401,2529.3,2529.2,1.46663009]
[1725024200258,1.38950401,2529.3,2529.2,1.46663009]
[1725024200465,5.34310401,2529.3,2529.2,1.46663009]
[1725024201550,1.38950401,2529.3,2529.2,1.46663009]
[1725024202062,6.33136401,2529.3,2529.2,1.46663009]
[1725024202463,5.34310401,2529.3,2529.2,1.46663009]
[1725024202649,5.34310401,2529.3,2529.0,0.381]
[1725024202650,4.35484401,2529.3,2529.0,0.381]
[1725024202847,0.39533,2529.1,2529.0,0.381]
[1725024203053,0.39533,2529.1,2529.0,1.84632801]
[1725024203256,0.75743,2529.1,2529.0,1.84632801]
[1725024204363,0.75743,2529.1,2529.0,1.46532801]
[1725024205959,0.39535,2529.0,2528.9,0.39535]
[1725024206158,0.3621,2529.1,2529.0,1.26222153]
[1725024206159,0.75745,2529.1,2529.0,1.26222153]
[1725024206358,0.75745,2529.1,2529.0,1.8612902]
[1725024206558,0.76363,2529.2,2529.1,0.39533]
[1725024206759,0.39532,2529.2,2529.1,1.8612702]
[1725024207663,0.39532,2529.2,2529.1,1.4659402]
[1725024208265,8.54502,2529.2,2529.1,0.86687153]
[1725024208465,8.54502,2529.2,2528.5,0.61662131]
[1725024208466,0.9885,2528.7,2528.5,0.61662131]
[1725024208759,0.39543,2528.5,2528.4,1.00062131]
[1725024209064,0.39543,2528.5,2528.4,0.384]
[1725024209262,0.39544,2528.4,2528.3,0.6172342]
[1725024209566,0.39544,2528.4,2528.0,24.96494199]
[1725024209567,1.38422,2528.1,2528.0,0.00593401]
[1725024209764,7.00075,2528.1,2528.0,0.00593401]
[1725024209965,15.28114913,2528.1,2528.0,0.00593401]
[1725024210155,15.28114913,2528.1,2527.4,0.384]
[1725024210156,0.98877,2528.0,2527.3,0.6172342]
[1725024210356,1.42,2527.5,2527.1,10.42309099]
[1725024210558,0.3592,2527.4,2527.1,9.39744504]
[1725024210864,0.39568,2526.9,2526.7,4.107]
[1725024211063,8.70373734,2527.4,2526.7,4.107]
[1725024211064,4.6278,2527.1,2526.7,4.107]
[1725024211270,4.63373401,2527.1,2526.7,4.107]
[1725024211569,0.39568,2526.9,2526.7,4.107]
[1725024211759,4.57033051,2527.0,2526.7,4.107]
[1725024211954,0.39567,2527.0,2526.7,4.107]
[1725024212362,3.60938401,2527.1,2526.7,4.107]
[1725024212765,3.21373401,2527.1,2527.0,0.39566]
[1725024213065,3.21373401,2527.1,2527.0,3.60346]
[1725024213066,0.00593401,2527.1,2527.0,3.60346]
[1725024213267,0.00593401,2527.1,2527.0,7.92026]
[1725024213858,3.7792,2527.8,2527.3,0.39561]
[1725024214064,3.7792,2527.8,2527.0,13.5246]
[1725024214065,0.75474,2527.8,2527.1,3.42]
[1725024214268,3.2078,2527.9,2527.5,0.39557]
[1725024214470,3.2078,2527.9,2527.6,0.39557]
[1725024214665,3.2078,2527.9,2527.5,0.39558]
[1725024214666,3.60332,2527.9,2527.5,0.39558]
[1725024214875,3.2078,2527.9,2527.6,0.39556]
[1725024215165,3.2078,2527.9,2527.7,0.3661]
[1725024215365,3.2078,2527.9,2527.7,0.76165]
[1725024215564,3.2078,2527.9,2527.8,0.39554]
[1725024215765,3.2078,2527.9,2527.7,0.76164]
[1725024216069,0.00593401,2528.0,2527.7,0.76164]
[1725024216260,0.00593401,2528.0,2527.7,0.3661]
[1725024216461,0.00593401,2528.0,2527.8,0.39552]
[1725024216770,0.00593401,2528.0,2527.7,0.76164]
[1725024217271,0.00593401,2528.0,2527.8,0.39553]
[1725024218264,0.00593401,2528.0,2527.7,0.76164]
[1725024218470,0.40144401,2528.0,2527.7,0.3661]
[1725024218674,0.00593401,2528.0,2527.7,0.76164]
[1725024219672,0.39553,2527.9,2527.7,0.3661]
[1725024219879,0.40145401,2528.0,2527.7,0.3661]
[1725024220175,0.00593401,2528.0,2527.7,0.76165]
[1725024220469,0.00593401,2528.0,2527.7,0.3661]
[1725024220667,0.00593401,2528.0,2527.8,0.39553]
[1725024222172,0.00593401,2528.0,2527.7,0.76165]
[1725024222368,0.39553,2527.9,2527.7,0.3661]
[1725024222673,0.39554,2527.8,2527.7,0.3661]
[1725024222873,0.3655,2527.8,2527.7,0.3661]
[1725024223064,0.3655,2527.8,2527.7,0.76165]
[1725024223271,0.40144401,2528.0,2527.8,0.39553]
[1725024223970,0.40144401,2528.0,2527.7,0.76164]
[1725024224472,0.40144401,2528.0,2527.8,0.39554]
[1725024224873,0.00593401,2528.0,2527.9,0.39552]
[1725024225068,0.40145401,2528.0,2527.7,0.76164]
[1725024225263,0.39552,2527.9,2527.7,0.76164]
[1725024226173,0.40144401,2528.0,2527.8,0.39554]
[1725024228278,0.40144401,2528.0,2527.9,0.39552]
[1725024228778,0.00593401,2528.0,2527.9,0.39552]
[1725024229679,0.00593401,2528.0,2527.9,8.54813]
[1725024229887,0.3577,2528.5,2528.4,0.39544]
[1725024230177,0.3654,2528.7,2528.6,0.39541]
[1725024230575,3.2078,2528.9,2528.5,0.3734]
[1725024230885,3.2078,2528.9,2528.8,0.39538]
[1725024236086,0.78998401,2529.0,2528.9,0.39536]
[1725024236271,0.00593401,2529.0,2528.9,0.39536]
[1725024236676,0.00593401,2529.0,2528.9,5.33818]
[1725024237176,0.00593401,2529.0,2528.9,5.69218]
[1725024239472,0.00593401,2529.0,2528.9,4.70376]
[1725024239674,0.00593401,2529.0,2528.9,0.74936]
[1725024239872,0.00593401,2529.0,2528.8,3.42]
[1725024239873,0.00593401,2529.0,2528.8,0.39537]
[1725024240068,0.39536,2528.9,2528.8,0.39537]
[1725024240273,0.3886,2528.9,2528.8,0.39537]
[1725024241277,0.00593401,2529.0,2528.9,1.38378]
[1725024241675,0.00593401,2529.0,2528.9,5.33818]
[1725024242282,0.00593401,2529.0,2528.9,5.59093801]
[1725024242577,0.00593401,2529.0,2528.9,6.57935801]
[1725024242784,0.00593401,2529.0,2528.9,5.33818]
[1725024243282,0.00593401,2529.0,2528.9,4.34976]
[1725024244080,0.00593401,2529.0,2528.9,6.3266]
[1725024247287,0.40128401,2529.0,2528.9,0.39536]
[1725024247682,0.40128401,2529.0,2528.8,0.39537]
[1725024247683,0.39537,2528.9,2528.8,0.39537]
[1725024247874,0.76197,2528.9,2528.8,0.39537]
[1725024248577,4.56282,2528.9,2528.4,11.09423401]
[1725024248782,4.56282,2528.9,2528.4,3.21373401]
[1725024248783,0.39543,2528.5,2528.4,3.21373401]
[1725024249086,1.38401,2528.5,2528.4,0.00593401]
[1725024249284,0.39551,2528.0,2527.8,0.3647]
[1725024249484,0.39551,2528.0,2527.8,0.39553]
[1725024249690,0.3666,2528.4,2527.9,0.39552]
[1725024250082,4.92167015,2528.2,2527.7,6.6278]
[1725024250388,0.3666,2528.4,2527.9,0.39551]
[1725024250389,0.39549,2528.1,2527.9,0.39551]
[1725024250588,0.76349,2528.1,2527.9,0.39551]
[1725024250782,0.39551,2528.0,2527.8,0.39554]
[1725024250979,0.39551,2528.0,2527.7,6.63373401]
[1725024250980,0.7635,2528.1,2527.7,6.63373401]
[1725024251289,0.7635,2528.1,2527.9,0.39552]
[1725024252078,3.956,2528.0,2527.7,0.40147401]
[1725024252283,0.39552,2527.9,2527.7,0.00593401]
[1725024252484,0.77212,2527.9,2527.7,0.00593401]
[1725024252891,0.3766,2527.9,2527.7,0.40148401]
[1725024253095,0.368,2528.1,2527.9,0.39552]
[1725024253792,0.368,2528.1,2528.0,0.39551]
[1725024254089,0.368,2528.1,2527.8,0.39554]
[1725024254298,0.7635,2528.1,2527.9,0.39551]
[1725024254594,0.76349,2528.1,2527.9,0.39551]
[1725024255888,0.39551,2528.0,2527.9,0.39551]
[1725024256189,0.39553,2527.9,2527.7,7.02928401]
[1725024256793,0.374,2527.8,2527.7,7.02928401]
[1725024258196,0.374,2527.8,2527.7,3.82148401]
[1725024258403,0.374,2527.8,2527.7,4.42163584]
[1725024258993,0.76954,2527.8,2527.7,4.42163584]
[1725024259894,0.76954,2527.8,2527.7,0.60608584]
[1725024260097,0.76954,2527.8,2527.7,0.00593401]
[1725024260497,1.75839,2527.8,2527.7,0.00593401]
[1725024261789,17.2101361,2527.8,2527.7,0.00593401]
[1725024261998,0.39558,2527.5,2527.4,3.2078]
[1725024262393,0.78238,2527.5,2527.4,3.2078]
[1725024263196,0.78238,2527.5,2527.4,3.6034]
[1725024263386,0.3868,2527.5,2527.4,3.6034]
[1725024268102,0.3868,2527.5,2527.4,0.3956]
[1725024269205,0.00593401,2527.7,2527.6,0.39557]
[1725024271501,0.40148401,2527.7,2527.6,0.39557]
[1725024273602,0.00593401,2527.7,2527.6,0.39557]
[1725024274110,0.40148401,2527.7,2527.6,0.39557]
[1725024274997,0.00593401,2527.7,2527.6,0.39557]
[1725024276505,0.40148401,2527.7,2527.6,0.39557]
[1725024277199,0.00593401,2527.7,2527.6,0.39557]
[1725024277608,0.40148401,2527.7,2527.6,0.39557]
[1725024278197,0.00593401,2527.7,2527.6,0.39557]
[1725024278608,0.40148401,2527.7,2527.6,0.39557]
[1725024280012,0.00593401,2527.7,2527.6,0.39557]
[1725024280207,0.00593401,2527.7,2527.6,1.3845]
[1725024280407,0.00593401,2527.7,2527.6,15.95014296]
[1725024280603,0.39548,2528.2,2528.1,0.39549]
[1725024281610,0.74936,2528.3,2528.2,0.39547]
[1725024281809,1.10896,2528.3,2528.2,0.39547]
[1725024282110,0.39551,2528.0,2527.9,0.75691]
[1725024282904,0.39549,2528.1,2527.9,0.3614]
[1725024283102,0.39549,2528.1,2528.0,0.39549]
[1725024283509,0.39551,2528.0,2527.9,0.75691]
[1725024284110,0.39551,2528.0,2527.9,0.3614]
[1725024285014,0.39551,2528.0,2527.9,0.75692]
[1725024285811,0.39549,2528.2,2528.1,0.39548]
[1725024286415,1.10897,2528.3,2528.2,0.39547]
[1725024288314,0.7135,2528.3,2528.2,0.39547]
[1725024289404,0.7135,2528.3,2528.1,3.60328]
[1725024289606,0.39547,2528.2,2528.1,3.60328]
[1725024290313,0.39547,2528.2,2528.1,4.20272717]
[1725024291103,0.39547,2528.2,2528.1,4.20271555]
[1725024291711,0.39547,2528.2,2528.1,3.60328]
[1725024292013,1.10897,2528.3,2528.2,0.39547]
[1725024292316,1.10897,2528.3,2528.2,0.9947898]
[1725024294117,1.10897,2528.3,2528.2,0.5993198]
[1725024294316,1.10897,2528.3,2528.2,1.46667294]
[1725024294620,2.09762,2528.3,2528.2,1.46667294]
[1725024294817,6.43292,2528.3,2528.2,1.46667294]
[1725024295114,0.39549,2528.1,2528.0,0.39549]
[1725024295316,0.39551,2528.0,2527.9,0.39551]
[1725024295517,0.39551,2528.0,2527.9,1.86244822]
[1725024295707,0.3955,2528.1,2528.0,0.39549]
[1725024296015,0.3955,2528.1,2528.0,1.86242822]
[1725024296319,5.34023,2528.1,2528.0,1.46693822]
[1725024296508,9.53656251,2528.1,2528.0,1.46693822]
[1725024297518,9.53656251,2528.1,2528.0,1.86244822]
[1725024298017,0.3955,2528.1,2528.0,1.86244822]
[1725024298406,0.3955,2528.1,2528.0,1.86225466]
[1725024298909,0.39549,2528.2,2528.1,0.39547]
[1725024299113,0.7135,2528.3,2528.2,0.39547]
[1725024299422,0.7135,2528.3,2528.2,1.86221466]
[1725024299617,1.10896,2528.3,2528.2,1.86221466]
[1725024300323,0.00593401,2528.4,2528.3,0.39546]
[1725024300525,0.40137401,2528.4,2528.3,1.86220466]
[1725024300712,0.40137401,2528.4,2528.3,1.46674466]
[1725024301119,0.40137401,2528.4,2528.3,0.39546]
[1725024301416,0.40137401,2528.4,2528.3,1.46639202]
[1725024301617,0.40137401,2528.4,2528.3,1.86185202]
[1725024301618,0.00593401,2528.4,2528.3,1.86185202]
[1725024301915,0.98848,2528.8,2528.6,0.39541]
[1725024301916,0.78099,2528.8,2528.6,0.39541]
[1725024302110,0.3715,2528.7,2528.6,0.39541]
[1725024302309,3.2078,2528.9,2528.6,1.46546576]
[1725024302518,7.3849,2529.4,2528.7,1.85695678]
[1725024302710,7.3849,2529.4,2528.8,1.84865678]
[1725024302911,4.37482727,2529.3,2529.2,0.39532]
[1725024303110,0.00593401,2529.3,2529.2,0.99416106]
[1725024303314,3.95953401,2529.3,2529.2,0.39532]
[1725024304011,0.00593401,2529.3,2529.2,0.99372978]
[1725024304221,0.00593401,2529.3,2529.2,0.39532]
[1725024304408,0.00593401,2529.3,2529.2,0.99366433]
[1725024304615,0.00593401,2529.3,2529.1,0.39533]
[1725024304821,0.00593401,2529.3,2528.8,1.14160401]
[1725024305118,0.39532,2529.2,2528.9,0.99390236]
[1725024305319,0.39532,2529.2,2528.8,0.74623401]
[1725024305320,0.00593401,2529.3,2528.8,3.95403401]
[1725024305513,0.00593401,2529.3,2529.1,0.39532]
[1725024305715,0.00593401,2529.3,2529.2,0.3591]
[1725024306425,0.40123401,2529.3,2529.2,0.3591]
[1725024306624,0.00593401,2529.3,2529.2,0.3591]
[1725024306819,0.40123401,2529.3,2529.2,0.3591]
[1725024307010,0.39532,2529.2,2529.0,0.39534]
[1725024307622,0.40124401,2529.3,2529.0,0.39535]
[1725024307827,0.39532,2529.2,2529.0,0.39535]
[1725024308024,0.40124401,2529.3,2529.0,0.39535]
[1725024308525,0.40124401,2529.3,2529.1,0.39533]
[1725024308718,0.39532,2529.2,2529.1,0.39533]
[1725024308924,0.39532,2529.2,2529.0,0.39534]
[1725024309224,0.40124401,2529.3,2529.1,0.39533]
[1725024309411,0.39533,2529.2,2529.0,0.39534]
[1725024309811,0.00593401,2529.3,2529.0,0.39534]
[1725024309812,0.39533,2529.1,2529.0,0.39534]
[1725024310225,0.39535,2529.0,2528.8,0.40130401]
[1725024310527,0.3708,2529.0,2528.9,0.39536]
[1725024310733,0.76615,2529.0,2528.8,0.00593401]
[1725024311027,0.76615,2529.0,2528.9,0.39536]
[1725024311525,0.39536,2528.9,2528.8,0.00593401]
[1725024311828,0.39536,2528.9,2528.8,0.40131401]
[1725024312023,0.74906,2528.9,2528.8,0.40131401]
[1725024312319,0.76616,2529.0,2528.9,0.39536]
[1725024314027,0.76616,2529.0,2528.8,0.40130401]
[1725024314028,0.39536,2528.9,2528.8,0.40130401]
[1725024314224,0.39536,2528.9,2528.8,0.40131401]
[1725024315120,5.33818,2528.9,2528.8,0.00593401]
[1725024315424,8.64083348,2528.9,2528.8,0.00593401]
[1725024315626,0.3708,2529.0,2528.9,0.39536]
[1725024316622,41.16653401,2529.3,2528.9,0.39536]
[1725024316623,0.40124401,2529.3,2529.2,0.39532]
[1725024316823,0.39533,2529.2,2529.1,0.39532]
[1725024317625,0.78264401,2529.3,2529.2,0.39532]
[1725024318516,0.40124401,2529.3,2529.2,0.39532]
[1725024320230,0.39532,2529.2,2529.1,0.39532]
[1725024320427,0.76422,2529.2,2529.1,0.39532]
[1725024320618,0.3689,2529.2,2529.0,0.3886]
[1725024320816,0.39536,2528.9,2528.8,0.40130401]
[1725024321221,4.34976,2528.9,2528.8,0.00593401]
[1725024321428,5.33818,2528.9,2528.8,0.00593401]
[1725024321619,0.39536,2528.9,2528.8,0.40131401]
[1725024321819,0.39536,2528.9,2528.8,0.00593401]
[1725024322216,0.39536,2528.9,2528.8,0.40131401]
[1725024322422,0.39536,2528.9,2528.8,0.00593401]
[1725024322423,16.77127947,2528.9,2528.8,0.00593401]
[1725024322622,19.97907947,2528.9,2528.8,0.00593401]
[1725024324331,12.99065947,2528.9,2528.8,0.00593401]
[1725024325827,9.78285947,2528.9,2528.8,0.00593401]
[1725024326435,8.79443947,2528.9,2528.8,0.40131401]
[1725024327324,4.84003947,2528.9,2528.8,0.40131401]
[1725024327519,4.84003947,2528.9,2528.8,0.00593401]
[1725024327724,4.84003947,2528.9,2528.8,0.40131401]
[1725024327939,8.79443947,2528.9,2528.8,0.00593401]
[1725024328429,9.78285947,2528.9,2528.8,0.00593401]
[1725024330132,5.82845947,2528.9,2528.8,0.40131401]
[1725024330332,9.78285947,2528.9,2528.8,0.00593401]
[1725024330535,5.82845947,2528.9,2528.8,0.00593401]
[1725024330940,9.78285947,2528.9,2528.8,0.00593401]
[1725024331234,5.82845947,2528.9,2528.8,0.00593401]
[1725024331529,9.78285947,2528.9,2528.8,0.00593401]
[1725024332322,5.82845947,2528.9,2528.8,0.00593401]
[1725024332624,9.78285947,2528.9,2528.8,0.00593401]
[1725024333929,5.82845947,2528.9,2528.8,0.00593401]
[1725024334127,4.84003947,2528.9,2528.8,0.00593401]
[1725024334331,0.39536,2528.9,2528.8,0.40131401]
[1725024334928,1.38378,2528.9,2528.8,0.00593401]
[1725024336138,9.81441269,2528.9,2528.8,0.00593401]
[1725024336439,4.47623269,2528.9,2528.8,0.40131401]
[1725024336637,0.39536,2529.0,2528.9,0.39536]
[1725024337143,0.39535,2529.0,2528.9,0.75006]
[1725024337442,0.39535,2529.0,2528.9,1.34833144]
[1725024337646,5.12894,2529.1,2529.0,0.39535]
[1725024337840,0.3689,2529.2,2529.1,0.39533]
[1725024338251,0.39532,2529.2,2529.1,0.39533]
[1725024338437,0.40124401,2529.3,2529.2,0.39532]
[1725024338749,0.00593401,2529.3,2529.2,0.39532]
[1725024338948,0.00593401,2529.3,2529.2,0.99338917]
[1725024339150,0.00593401,2529.3,2529.2,0.99341186]
[1725024339339,0.00593401,2529.3,2529.2,0.39532]
[1725024339645,0.40123401,2529.3,2529.2,0.39532]
[1725024339847,0.40123401,2529.3,2529.2,0.99346652]
[1725024341045,0.39533,2529.2,2529.1,0.39532]
[1725024341245,0.39533,2529.2,2529.1,0.9935638]
[1725024342538,0.39533,2529.2,2529.1,0.5982438]
[1725024342743,0.39533,2529.2,2528.9,3.5625]
[1725024342744,0.39535,2529.0,2528.9,3.5625]
[1725024342943,0.39535,2529.0,2528.9,4.16080489]
[1725024343344,0.39535,2529.0,2528.9,3.80610489]
[1725024343345,2.14803,2529.0,2528.9,3.80610489]
[1725024343759,6.10243,2529.0,2528.9,3.80610489]
[1725024344245,6.10243,2529.0,2528.9,4.67201931]
[1725024344446,6.10243,2529.0,2528.9,3.80610489]
[1725024345348,7.09081,2529.0,2528.9,0.59830489]
[1725024345550,7.09081,2529.0,2528.8,0.00593401]
[1725024345551,2.3722,2528.9,2528.8,0.00593401]
[1725024345859,10.48898365,2528.9,2528.8,0.60439741]
[1725024348747,10.48898365,2528.9,2528.8,0.00593401]
[1725024348949,10.48898365,2528.9,2528.8,0.60450638]
[1725024354162,51.28898365,2528.9,2528.8,0.60450638]
[1725024355262,10.48898365,2528.9,2528.8,0.60450638]
[1725024355460,10.48898365,2528.9,2528.8,0.00593401]
[1725024355648,10.48898365,2528.9,2528.8,0.60491796]
[1725024355959,51.28898365,2528.9,2528.8,0.60491796]
[1725024356161,51.28898365,2528.9,2528.8,1.20413812]
[1725024356662,51.28898365,2528.9,2528.8,0.60491796]
[1725024357054,51.28898365,2528.9,2528.8,1.20417311]
[1725024357359,51.28898365,2528.9,2528.8,0.60491796]
[1725024357950,60.70898365,2528.9,2528.8,0.60491796]
[1725024359958,1.38411,2528.3,2528.2,0.99729703]
[1725024360152,1.38411,2528.3,2528.2,2.46308115]
[1725024360555,1.38411,2528.3,2528.2,2.08268115]
[1725024361651,0.39546,2528.3,2528.2,1.46578412]
[1725024361962,0.98858,2528.5,2528.3,0.39545]
[1725024361963,0.39546,2528.4,2528.3,0.39545]
[1725024362161,0.39546,2528.4,2528.3,2.22283412]
[1725024362362,0.39546,2528.4,2528.3,6.17803412]
[1725024363360,0.39546,2528.4,2528.3,1.46578412]
[1725024363361,1.38407,2528.4,2528.3,1.46578412]
[1725024366565,1.38407,2528.4,2528.3,0.59895466]
[1725024367167,1.38407,2528.4,2528.3,1.46576381]
[1725024367357,1.38407,2528.4,2528.3,0.59895466]
[1725024367660,0.39549,2528.1,2528.0,0.40143401]
[1725024367854,1.38422,2528.1,2528.0,0.87289073]
[1725024368053,1.38422,2528.1,2528.0,1.47200798]
[1725024368255,0.39549,2528.1,2528.0,1.86751798]
[1725024368657,1.38422,2528.1,2528.0,1.47200798]
[1725024369957,2.37295,2528.1,2528.0,1.47200798]
[1725024370161,10.77369589,2528.1,2528.0,0.60505126]
[1725024370971,10.77369589,2528.1,2528.0,0.6050573]
[1725024371356,12.19369589,2528.1,2528.0,0.6050573]
[1725024371669,12.19369589,2528.1,2528.0,0.00593401]
[1725024375567,1.3845,2527.6,2527.5,4.107]
[1725024375866,1.3845,2527.6,2527.5,0.60002408]
[1725024377363,0.39558,2527.5,2527.4,5.0234]
[1725024377578,0.39558,2527.5,2527.4,6.49190571]
[1725024377768,0.39558,2527.5,2527.4,10.44870571]
[1725024378371,0.39558,2527.5,2527.4,5.62345147]
[1725024379667,1.38455,2527.5,2527.4,0.60005147]
[1725024380065,2.37362,2527.4,2527.3,0.36893401]
[1725024380262,7.75042,2527.4,2527.3,0.00593401]
[1725024380568,53.06014638,2527.4,2527.3,0.00593401]
[1725024380968,53.06014638,2527.4,2527.3,7.96e-06]
[1725024387070,56.26794638,2527.4,2527.3,7.96e-06]
[1725024388474,15.46794638,2527.4,2527.3,7.96e-06]
[1725024389677,21.46794638,2527.4,2527.3,7.96e-06]
[1725024400584,15.46794638,2527.4,2527.3,7.96e-06]
[1725024401779,21.46794638,2527.4,2527.3,7.96e-06]
[1725024401979,15.46794638,2527.4,2527.3,7.96e-06]
[1725024402388,21.46794638,2527.4,2527.3,7.96e-06]